fUST/lending_fUST_20250109
["ID","MTS","AMOUNT","RATE_DAILY","PERIOD"]
[348175714,1736367036561,-366.43033973,0.00022141,2]
[348175715,1736367036571,-376.01649882,0.00022189,2]
[348175716,1736367036580,-500.0,0.0002219,3]
[348175717,1736367036589,-541.86,0.0002219,3]
[348175718,1736367036598,-1543.05,0.0002219,3]
[348175719,1736367036607,-906.46,0.00022191,3]
[348175720,1736367036617,-515.58,0.00022191,3]
[348175721,1736367036626,-394.0,0.00022244,2]
[348175722,1736367036635,-366.43033973,0.00022245,2]
[348175723,1736367036645,-366.43033973,0.00022348,2]
[348175724,1736367036654,-366.43033973,0.00022452,2]
[348175725,1736367036663,-1190.62,0.00022464,3]
[348175726,1736367036672,-1543.05,0.00022464,3]
[348175727,1736367036682,-906.46,0.00022465,3]
[348175728,1736367036692,-515.58,0.00022465,3]
[348175729,1736367036701,-366.43033973,0.00022555,2]
[348175730,1736367036710,-186.99101423,0.00022569,2]
[348175731,1736367036719,-366.43033973,0.00022659,2]
[348175732,1736367036728,-1543.05,0.00022738,3]
[348175733,1736367036737,-906.46,0.00022739,3]
[348175734,1736367036747,-515.58,0.00022739,3]
[348175735,1736367036757,-366.43033973,0.00022762,2]
[348175736,1736367036766,-587.0,0.00022776,2]
[348175737,1736367036775,-8331.78383117,0.00022781,2]
[348175738,1736367036785,-500.0,0.00022784,3]
[348175739,1736367036794,-2157.394,0.00022784,2]
[348175740,1736367036803,-366.43033973,0.00022866,2]
[348175741,1736367036812,-366.43033973,0.00022969,2]
[348175742,1736367036821,-1543.05,0.00023012,3]
[348175743,1736367036830,-906.46,0.00023013,3]
[348175744,1736367036839,-515.58,0.00023013,3]
[348175745,1736367036848,-366.43033973,0.00023072,2]
[348175746,1736367036857,-174.42819809,0.00023095,2]
[348175747,1736367036867,-1190.62,0.00023097,3]
[348175748,1736367036876,-1190.62,0.00023097,3]
[348175749,1736367036884,-500.0,0.00023097,3]
[348175750,1736367036894,-500.0,0.00023097,3]
[348175751,1736367036903,-1190.62,0.00023169,3]
[348175752,1736367036912,-500.0,0.00023173,2]
[348175753,1736367036921,-366.43033973,0.00023176,2]
[348175754,1736367036932,-1190.62,0.00023189,3]
[348175755,1736367036941,-1190.62,0.00023189,3]
[348175756,1736367036950,-1190.62,0.00023189,3]
[348175757,1736367036959,-1190.62,0.00023189,3]
[348175758,1736367036969,-1190.62,0.00023189,3]
[348175759,1736367036978,-1190.62,0.00023189,3]
[348175760,1736367036987,-525.37421405,0.00023189,3]
[348175798,1736367038665,-500.0,0.00019721,2]
[348175800,1736367038675,-160.85941558,0.00019721,2]
[348175802,1736367038685,-500.0,0.00019721,2]
[348175804,1736367038694,-500.0,0.00019721,2]
[348175806,1736367038703,-107.14058442,0.00019721,2]
[348176311,1736367043700,-392.85941558,0.00019721,2]
[348176313,1736367043710,-500.0,0.00019721,2]
[348176315,1736367043719,-500.0,0.00019721,2]
[348176317,1736367043728,-500.0,0.00019721,2]
[348176319,1736367043738,-500.0,0.00019721,2]
[348176321,1736367043747,-500.0,0.00019721,2]
[348176323,1736367043756,-500.0,0.00019721,2]
[348176326,1736367043766,-500.0,0.00019721,2]
[348176328,1736367043775,-500.0,0.00019721,2]
[348176330,1736367043784,-500.0,0.00019721,2]
[348176332,1736367043793,-500.0,0.00019721,2]
[348176334,1736367043802,-462.5016401,0.00019721,2]
[348176336,1736367043813,-500.0,0.00019721,2]
[348176338,1736367043822,-500.0,0.00019721,2]
[348176339,1736367043831,-500.0,0.00019721,2]
[348176342,1736367043841,-500.0,0.00019721,2]
[348176344,1736367043850,-500.0,0.00019721,2]
[348176346,1736367043859,-500.0,0.00019721,2]
[348176348,1736367043869,-500.0,0.00019721,2]
[348176350,1736367043878,-500.0,0.00019721,2]
[348176352,1736367043887,-439.99314388,0.00019721,2]
[348176354,1736367043897,-500.0,0.00019721,2]
[348176356,1736367043905,-500.0,0.00019721,2]
[348176358,1736367043914,-500.0,0.00019721,2]
[348176360,1736367043924,-500.0,0.00019721,2]
[348176362,1736367043934,-500.0,0.00019721,2]
[348176364,1736367043943,-500.0,0.00019721,2]
[348176366,1736367043953,-500.0,0.00019721,2]
[348176368,1736367043962,-500.0,0.00019721,2]
[348176370,1736367043972,-500.0,0.00019721,2]
[348176372,1736367043981,-500.0,0.00019721,2]
[348176374,1736367043991,-500.0,0.00019721,2]
[348176376,1736367044001,-500.0,0.00019721,2]
[348176378,1736367044011,-500.0,0.00019721,2]
[348176380,1736367044020,-500.0,0.00019721,2]
[348176382,1736367044030,-320.02807398,0.00022556,2]
[348176384,1736367044042,-500.0,0.00022609,2]
[348176386,1736367044051,-500.0,0.00023173,2]
[348176388,1736367044060,-665.24578595,0.00023189,3]
[348176390,1736367044069,-1190.62,0.00023189,3]
[348176392,1736367044078,-1190.62,0.00023189,3]
[348176394,1736367044088,-1190.62,0.00023189,3]
[348176396,1736367044097,-1190.62,0.00023189,3]
[348176398,1736367044106,-1190.62,0.00023189,3]
[348176400,1736367044115,-1190.62,0.00023189,3]
[348176402,1736367044124,-1190.62,0.00023189,3]
[348176404,1736367044133,-65.22495951,0.00023189,3]
[348176654,1736367046701,-520.0,0.00023189,3]
[348176661,1736367046755,-605.39504049,0.00023189,3]
[348176663,1736367046764,-1190.62,0.00023189,3]
[348176665,1736367046775,-1190.81031718,0.00023189,3]
[348176667,1736367046784,-500.0,0.00023189,2]
[348176669,1736367046794,-151.0,0.0002319,7]
[348176671,1736367046804,-151.0,0.0002319,7]
[348176673,1736367046814,-151.0,0.0002319,7]
[348176675,1736367046824,-151.0,0.0002319,7]
[348176676,1736367046836,-151.0,0.0002319,7]
[348176677,1736367046846,-151.0,0.0002319,7]
[348176678,1736367046859,-151.0,0.0002319,7]
[348176679,1736367046869,-151.0,0.0002319,7]
[348176680,1736367046879,-151.0,0.0002319,7]
[348176681,1736367046889,-151.0,0.0002319,7]
[348176682,1736367046899,-151.0,0.0002319,7]
[348176683,1736367046908,-255.926896,0.0002319,7]
[348176684,1736367046917,-151.0,0.0002319,7]
[348176685,1736367046926,-151.0,0.0002319,7]
[348176686,1736367046936,-151.0,0.0002319,7]
[348176687,1736367046944,-151.0,0.0002319,7]
[348176688,1736367046953,-151.0,0.0002319,7]
[348176689,1736367046962,-151.0,0.0002319,7]
[348176690,1736367046971,-151.0,0.0002319,7]
[348176691,1736367046980,-151.0,0.0002319,7]
[348176692,1736367046989,-151.0,0.0002319,7]
[348176693,1736367046998,-151.0,0.0002319,7]
[348176694,1736367047007,-151.0,0.0002319,7]
[348176695,1736367047016,-151.0,0.0002319,7]
[348176696,1736367047024,-151.0,0.0002319,7]
[348176697,1736367047033,-151.0,0.0002319,7]
[348176698,1736367047043,-151.0,0.0002319,7]
[348176699,1736367047052,-202.167189,0.0002319,7]
[348176700,1736367047062,-151.0,0.0002319,7]
[348176701,1736367047071,-151.0,0.0002319,7]
[348176702,1736367047080,-151.0,0.0002319,7]
[348176703,1736367047089,-151.0,0.0002319,7]
[348176704,1736367047098,-151.0,0.0002319,7]
[348176705,1736367047107,-151.0,0.0002319,7]
[348176707,1736367047116,-151.0,0.0002319,7]
[348176708,1736367047126,-151.0,0.0002319,7]
[348176710,1736367047135,-151.0,0.0002319,7]
[348176712,1736367047144,-151.0,0.0002319,7]
[348176713,1736367047153,-151.0,0.0002319,7]
[348176715,1736367047163,-151.0,0.0002319,7]
[348176716,1736367047172,-300.89067,0.0002319,7]
[348176717,1736367047181,-182.583528,0.0002319,7]
[348176718,1736367047193,-578.39193899,0.00023195,5]
[348176719,1736367047202,-151.526937,0.00023195,7]
[348176720,1736367047214,-151.0,0.00023195,7]
[348176721,1736367047223,-213.072305,0.00023195,7]
[348176722,1736367047232,-151.0,0.00023195,7]
[348176723,1736367047241,-151.0,0.00023195,7]
[348176724,1736367047251,-236.96574,0.00023195,7]
[348176725,1736367047260,-151.0,0.00023195,7]
[348176726,1736367047269,-151.0,0.00023195,7]
[348176727,1736367047278,-151.0,0.00023195,7]
[348176728,1736367047287,-151.0,0.00023195,7]
[348176729,1736367047297,-151.0,0.00023195,7]
[348176730,1736367047306,-151.0,0.00023195,7]
[348176731,1736367047315,-174.303816,0.00023195,7]
[348176732,1736367047325,-151.0,0.00023195,7]
[348176733,1736367047335,-151.0,0.00023195,7]
[348176734,1736367047345,-151.0,0.00023195,7]
[348176735,1736367047354,-151.0,0.00023195,7]
[348176736,1736367047363,-151.0,0.00023195,7]
[348176737,1736367047373,-7047.99002221,0.00023195,5]
[348176738,1736367047386,-1530.85918057,0.00023195,5]
[348176739,1736367047395,-17046.74081942,0.00023195,10]
[348176740,1736367047407,-1728.07730735,0.00023195,10]
[348176741,1736367047436,-33953.35868313,0.00023195,10]
[348176766,1736367611304,160.510055,0.00013973,2]
[348176769,1736368048133,-850.6718713,0.00018381,2]
[348176770,1736368048155,-154.45,0.00019178,2]
[348176771,1736368048177,-300.0,0.00019443,2]
[348176772,1736368048197,-5472.0,0.00019446,2]
[348176773,1736368048218,-482.61899211,0.00019447,3]
[348176774,1736368147155,-843.97027119,0.00016,2]
[348176775,1736368147175,-91.75756304,0.00018,7]
[348176782,1736368154106,-5519.3012,0.00018,7]
[348176783,1736368156129,-204.7432317,0.00018,7]
[348176784,1736368173181,-29.39149302,0.00018,7]
[348176785,1736368173205,-3238.21966651,0.000188,2]
[348176824,1736368236045,-173.6849017,0.00018,2]
[348176827,1736368236058,-358.69340103,0.000189,2]
[348176829,1736368236069,-500.0,0.00019178,2]
[348176830,1736368236079,-175.57692925,0.0001935,2]
[348176832,1736368236090,-300.0,0.00019446,2]
[348176834,1736368236100,-517.38100789,0.00019446,3]
[348176836,1736368236109,-500.0,0.00019447,3]
[348176837,1736368236119,-596.45,0.00019447,3]
[348176839,1736368236129,-500.0,0.00019447,3]
[348176841,1736368236139,-500.0,0.00019447,3]
[348176843,1736368236150,-500.0,0.00019447,3]
[348176845,1736368236160,-268.9989584,0.00019447,3]
[348176847,1736368236170,-500.0,0.00019447,3]
[348176848,1736368236181,-627.58604872,0.00019447,3]
[348176850,1736368236191,-500.0,0.00019447,3]
[348176852,1736368236205,-150.0,0.00019447,3]
[348176854,1736368236216,-500.0,0.00019447,3]
[348176856,1736368236226,-500.0,0.00019447,3]
[348176858,1736368236236,-500.0,0.00019447,3]
[348176859,1736368236246,-529.49,0.00019447,3]
[348176860,1736368236256,-500.0,0.00019447,3]
[348176861,1736368236268,-500.0,0.00019447,3]
[348176862,1736368236278,-500.0,0.00019447,3]
[348176863,1736368236289,-500.0,0.00019447,3]
[348176864,1736368236299,-500.0,0.00019447,3]
[348176865,1736368236310,-500.0,0.00019447,3]
[348176866,1736368236320,-500.0,0.00019447,3]
[348176867,1736368236331,-500.0,0.00019447,3]
[348176868,1736368236341,-573.12,0.00019447,3]
[348176869,1736368236353,-387.96212484,0.00019447,3]
[348176870,1736368236364,-500.0,0.00019447,3]
[348176871,1736368236375,-500.0,0.00019447,3]
[348176872,1736368236386,-500.0,0.00019447,3]
[348176873,1736368236396,-361.84993862,0.00019447,3]
[348176874,1736368236406,-500.0,0.00019447,3]
[348176875,1736368236416,-524.35,0.00019447,3]
[348176876,1736368236427,-500.0,0.00019447,3]
[348176877,1736368236438,-173.20697325,0.00019447,3]
[348176878,1736368236455,-500.0,0.00019447,3]
[348176879,1736368236466,-278.66673372,0.00019447,3]
[348176880,1736368236476,-500.0,0.00019447,3]
[348176881,1736368236487,-500.0,0.00019447,3]
[348176882,1736368236498,-500.0,0.00019447,3]
[348176883,1736368236508,-500.0,0.00019447,3]
[348176884,1736368236658,-500.0,0.00019447,3]
[348176885,1736368236671,-500.0,0.00019447,3]
[348176886,1736368236681,-500.0,0.00019447,3]
[348176887,1736368236691,-500.0,0.00019447,3]
[348176888,1736368236706,-500.0,0.00019447,3]
[348176889,1736368236715,-500.0,0.00019447,3]
[348176890,1736368236725,-500.0,0.00019447,3]
[348176891,1736368236735,-500.0,0.00019447,2]
[348176892,1736368236745,-500.0,0.00019447,2]
[348176893,1736368236755,-326.66590488,0.00019447,2]
[348176894,1736368236764,-295.65104617,0.00019447,2]
[348176895,1736368236773,-313.86707013,0.00019447,2]
[348176896,1736368236783,-500.0,0.00019447,2]
[348176897,1736368236793,-500.0,0.00019447,2]
[348176898,1736368236806,-218.05573779,0.00019447,2]
[348176899,1736368236815,-500.0,0.00019447,2]
[348176900,1736368236825,-500.0,0.00019447,3]
[348176901,1736368236836,-500.0,0.00019447,3]
[348176902,1736368236846,-500.0,0.00019447,3]
[348176903,1736368236855,-916.87,0.00019447,3]
[348176904,1736368236864,-500.0,0.00019447,3]
[348176905,1736368236875,-501.36,0.00019447,3]
[348176906,1736368236885,-561.21,0.00019447,3]
[348176907,1736368236894,-500.0,0.00019447,3]
[348176908,1736368236904,-500.0,0.00019447,3]
[348176909,1736368236913,-500.0,0.00019447,3]
[348176910,1736368236923,-500.0,0.00019447,3]
[348176911,1736368236932,-500.0,0.00019447,3]
[348176912,1736368236942,-500.0,0.00019447,3]
[348176913,1736368236956,-500.0,0.00019447,3]
[348176914,1736368236965,-454.68234491,0.00019447,3]
[348176915,1736368236974,-500.0,0.00019447,3]
[348176916,1736368236983,-500.0,0.00019447,3]
[348176917,1736368236992,-500.0,0.00019447,3]
[348176918,1736368237001,-500.0,0.00019447,3]
[348176919,1736368237010,-500.0,0.00019447,3]
[348176920,1736368237020,-500.0,0.00019447,3]
[348176921,1736368237030,-500.0,0.00019447,3]
[348176922,1736368237040,-500.0,0.00019447,3]
[348176923,1736368237049,-495.68670623,0.00019447,3]
[348176924,1736368237060,-500.0,0.00019447,3]
[348176925,1736368237069,-500.0,0.00019447,3]
[348176926,1736368237079,-500.0,0.00019448,3]
[348176927,1736368237089,-500.0,0.00019448,3]
[348176928,1736368237098,-23.63800539,0.00019448,3]
[348176929,1736368237111,-476.36199461,0.00019448,3]
[348176930,1736368237121,-500.0,0.00019448,3]
[348176931,1736368237130,-500.0,0.00019448,3]
[348176932,1736368237140,-500.0,0.00019448,3]
[348176933,1736368237149,-500.0,0.00019448,3]
[348176934,1736368237159,-500.0,0.00019448,3]
[348176935,1736368237168,-522.21134252,0.00019448,3]
[348176936,1736368237177,-500.0,0.00019448,3]
[348176937,1736368237186,-202.04903747,0.00019448,3]
[348176938,1736368237196,-500.0,0.00019448,3]
[348176939,1736368237210,-131.63063216,0.00019448,3]
[348176940,1736368237287,-145.07156219,0.00019448,3]
[348176942,1736368237305,-506.35896811,0.00019446,3]
[348176943,1736368237315,-223.29780565,0.00019448,3]
[348176944,1736368237325,-500.0,0.00019448,3]
[348176945,1736368237334,-500.0,0.00019448,3]
[348176946,1736368237343,-500.0,0.00019448,3]
[348176947,1736368237352,-500.0,0.00019448,3]
[348176948,1736368237361,-296.03356257,0.00019448,3]
[348176975,1736368237847,-399.82719863,0.00019447,3]
[348176976,1736368237859,-100.17280137,0.00019447,3]
[348176977,1736368237868,-203.96643743,0.00019448,3]
[348176978,1736368237878,-500.0,0.00019448,3]
[348176979,1736368237887,-500.0,0.00019448,3]
[348176980,1736368237896,-500.0,0.00019448,3]
[348176981,1736368237906,-500.0,0.00019448,3]
[348176982,1736368237915,-500.0,0.00019448,3]
[348176983,1736368237924,-500.0,0.00019448,3]
[348176984,1736368237932,-179.92425341,0.00019448,3]
[348176985,1736368237941,-500.0,0.00019448,3]
[348176986,1736368237952,-500.0,0.00019448,3]
[348176987,1736368237961,-500.0,0.00019448,3]
[348176988,1736368237971,-452.69403194,0.00019448,3]
[348176989,1736368237980,-500.0,0.00019448,3]
[348176990,1736368237988,-500.0,0.00019448,3]
[348176991,1736368237998,-500.0,0.00019448,3]
[348176992,1736368238007,-500.0,0.00019448,3]
[348176993,1736368238016,-500.0,0.00019448,3]
[348176994,1736368238025,-500.0,0.00019448,3]
[348176995,1736368238034,-500.0,0.00019448,3]
[348176996,1736368238043,-504.70799912,0.00019448,3]
[348176997,1736368238052,-365.73285434,0.00019448,3]
[348176998,1736368238061,-369.6719459,0.00019448,3]
[348176999,1736368238070,-500.0,0.00019448,3]
[348177000,1736368238079,-155.6,0.00019448,2]
[348177001,1736368238088,-500.0,0.00019448,3]
[348177003,1736368238097,-500.0,0.00019448,3]
[348177004,1736368238106,-500.0,0.00019448,3]
[348177005,1736368238115,-500.0,0.00019448,3]
[348177007,1736368238124,-180.47823849,0.00019448,3]
[348177009,1736368238133,-500.0,0.00019448,3]
[348177011,1736368238142,-500.0,0.00019448,3]
[348177013,1736368238151,-500.0,0.00019448,3]
[348177015,1736368238160,-227.08520886,0.00019448,3]
[348177017,1736368238169,-223.92562225,0.00019448,3]
[348177019,1736368238178,-500.0,0.00019448,3]
[348177021,1736368238187,-442.86643342,0.00019448,3]
[348177023,1736368238197,-500.0,0.00019448,3]
[348177024,1736368238207,-500.0,0.00019448,3]
[348177027,1736368238216,-375.30804421,0.00019448,3]
[348177028,1736368238225,-503.86458562,0.00019448,3]
[348177030,1736368238235,-500.0,0.00019448,3]
[348177033,1736368238244,-505.30062941,0.00019448,3]
[348177034,1736368238254,-504.68442106,0.00019448,3]
[348177037,1736368238263,-500.0,0.00019448,3]
[348177038,1736368238272,-397.32967331,0.00019448,3]
[348177041,1736368238285,-102.67032669,0.00019448,3]
[348177043,1736368238294,-500.0,0.00019448,3]
[348177045,1736368238304,-472.35357014,0.00019448,3]
[348177047,1736368238314,-500.0,0.00019448,3]
[348177049,1736368238324,-500.0,0.00019448,3]
[348177051,1736368238334,-500.0,0.00019448,3]
[348177053,1736368238343,-215.00286643,0.00019448,3]
[348177163,1736368239866,-309.11453263,0.00019448,3]
[348177164,1736368239878,-500.0,0.00019448,3]
[348177165,1736368239888,-500.0,0.00019448,5]
[348177166,1736368239897,-38.14790477,0.00019448,3]
[348177167,1736368239923,-461.85209523,0.00019448,3]
[348177168,1736368239933,-500.0,0.00019448,3]
[348177169,1736368239942,-500.0,0.00019448,3]
[348177170,1736368239953,-500.0,0.00019448,3]
[348177171,1736368239962,-500.0,0.00019448,3]
[348177172,1736368239971,-244.95201296,0.00019448,3]
[348177173,1736368239982,-255.04798704,0.00019448,3]
[348177174,1736368239991,-336.36879241,0.00019448,3]
[348177175,1736368240002,-163.63120759,0.00019448,3]
[348177176,1736368240011,-500.0,0.00019448,3]
[348177177,1736368240021,-500.0,0.00019448,3]
[348177178,1736368240030,-500.0,0.00019448,3]
[348177179,1736368240039,-506.58374754,0.00019448,3]
[348177180,1736368240049,-500.0,0.00019448,3]
[348177181,1736368240058,-500.0,0.00019448,3]
[348177182,1736368240067,-500.0,0.00019448,3]
[348177183,1736368240076,-571.67464166,0.00019448,3]
[348177184,1736368240086,-500.0,0.00019448,3]
[348177186,1736368240095,-458.98757892,0.00019448,3]
[348177187,1736368240106,-41.01242108,0.00019448,3]
[348177188,1736368240115,-500.0,0.00019448,3]
[348177189,1736368240124,-103.57016741,0.00019448,3]
[348177190,1736368240141,-377.26299996,0.00019448,3]
[348177191,1736368240156,-19.16683263,0.00019448,3]
[348177192,1736368240165,-284.11066717,0.00019448,3]
[348177193,1736368240176,-215.88933283,0.00019448,3]
[348177194,1736368240186,-500.0,0.00019448,3]
[348177195,1736368240195,-13.86066717,0.00019448,3]
[348177200,1736368242879,-500.0,0.00019178,2]
[348177201,1736368242904,-486.13933283,0.00019448,3]
[348177202,1736368242927,-500.0,0.00019448,3]
[348177203,1736368242948,-500.0,0.00019448,3]
[348177204,1736368242984,-500.0,0.00019448,3]
[348177205,1736368243008,-500.0,0.00019448,3]
[348177207,1736368243017,-500.0,0.00019448,3]
[348177208,1736368243026,-500.0,0.00019448,3]
[348177209,1736368243035,-500.0,0.00019448,3]
[348177210,1736368243044,-500.0,0.00019448,3]
[348177211,1736368243053,-318.14097502,0.00019448,3]
[348177212,1736368243063,-451.12484766,0.00019448,3]
[348177213,1736368243072,-500.0,0.00019448,3]
[348177214,1736368243082,-500.0,0.00019448,3]
[348177215,1736368243091,-500.0,0.00019448,3]
[348177216,1736368243101,-500.0,0.00019448,3]
[348177217,1736368243110,-591.94,0.00019448,3]
[348177219,1736368243119,-500.0,0.00019448,3]
[348177220,1736368243130,-500.0,0.00019448,3]
[348177222,1736368243139,-500.0,0.00019448,3]
[348177224,1736368243148,-500.0,0.00019448,3]
[348177225,1736368243157,-500.0,0.00019448,3]
[348177226,1736368243166,-500.0,0.00019449,3]
[348177227,1736368243174,-500.0,0.00019449,3]
[348177228,1736368243183,-555.93,0.00019449,3]
[348177229,1736368243192,-500.0,0.00019449,3]
[348177230,1736368243203,-197.87707058,0.00019449,3]
[348177231,1736368243212,-500.0,0.00019449,3]
[348177232,1736368243221,-500.0,0.00019449,3]
[348177233,1736368243230,-500.0,0.00019449,3]
[348177234,1736368243239,-500.0,0.00019449,3]
[348177235,1736368243249,-500.0,0.00019449,3]
[348177236,1736368243258,-500.0,0.00019449,3]
[348177237,1736368243267,-583.96649289,0.00019449,3]
[348177238,1736368243276,-500.0,0.00019449,3]
[348177239,1736368243285,-500.0,0.00019449,3]
[348177240,1736368243294,-500.0,0.00019449,3]
[348177241,1736368243304,-500.0,0.00019449,3]
[348177242,1736368243313,-500.0,0.00019449,3]
[348177243,1736368243322,-500.0,0.00019449,3]
[348177244,1736368243331,-500.0,0.0001945,3]
[348177245,1736368243340,-500.0,0.0001945,3]
[348177246,1736368243349,-150.08040835,0.0001945,3]
[348177247,1736368243358,-500.0,0.0001945,3]
[348177248,1736368243367,-504.80280876,0.0001945,3]
[348177249,1736368243376,-500.0,0.0001945,3]
[348177250,1736368243385,-500.76012162,0.0001945,3]
[348177251,1736368243394,-500.0,0.0001945,3]
[348177252,1736368243403,-500.0,0.0001945,3]
[348177253,1736368243413,-500.0,0.0001945,3]
[348177254,1736368243422,-500.0,0.0001945,3]
[348177255,1736368243431,-500.0,0.0001945,3]
[348177256,1736368243442,-500.0,0.00019451,3]
[348177257,1736368243454,-500.0,0.00019452,3]
[348177258,1736368243463,-292.53,0.00019721,3]
[348177259,1736368243472,-263.25,0.00019721,3]
[348177260,1736368243481,-309.67,0.00019721,3]
[348177261,1736368243491,-407.08,0.00019721,3]
[348177262,1736368243499,-397.94,0.00019721,3]
[348177263,1736368243508,-500.0,0.00019721,3]
[348177264,1736368243518,-500.0,0.00019721,3]
[348177265,1736368243526,-500.0,0.00019721,3]
[348177266,1736368243535,-916.87,0.00019721,3]
[348177267,1736368243546,-500.0,0.00019721,3]
[348177268,1736368243568,-500.0,0.00019721,3]
[348177269,1736368243590,-500.0,0.00019721,3]
[348177270,1736368243611,-500.0,0.00019721,3]
[348177271,1736368243635,-438.09,0.00019721,3]
[348177272,1736368243657,-500.0,0.00019721,3]
[348177273,1736368243681,-573.99445169,0.00019722,3]
[348177274,1736368243706,-203.93964182,0.00019722,3]
[348177275,1736368243741,-500.0,0.00019722,3]
[348177276,1736368243769,-500.0,0.00019722,3]
[348177277,1736368243800,-471.2739152,0.00019722,3]
[348177278,1736368243822,-500.0,0.00019722,3]
[348177279,1736368243840,-166.82802481,0.00019722,3]
[348177280,1736368243852,-125.48814392,0.00019722,3]
[348177281,1736368243863,-500.0,0.00019723,3]
[348177282,1736368243871,-368.15,0.00019723,3]
[348177283,1736368243880,-500.0,0.00019723,3]
[348177284,1736368243890,-500.0,0.00019725,3]
[348177285,1736368243899,-248.83216021,0.00019725,3]
[348177286,1736368243995,-251.16783979,0.00019725,3]
[348177287,1736368244004,-196.74873229,0.00019725,3]
[348177288,1736368244014,-500.0,0.00019725,3]
[348177289,1736368244023,-500.0,0.00019725,3]
[348177290,1736368244031,-500.0,0.00019725,3]
[348177291,1736368244040,-500.0,0.00019725,3]
[348177292,1736368244049,-367.81,0.00019726,3]
[348177293,1736368244059,-500.0,0.00019995,3]
[348177294,1736368244069,-500.0,0.00019995,3]
[348177295,1736368244078,-916.87,0.00019995,3]
[348177296,1736368244087,-623.59220703,0.00019995,3]
[348177297,1736368244095,-396.91,0.00019995,3]
[348177298,1736368244104,-276.9,0.00019995,3]
[348177299,1736368244113,-500.0,0.00019995,3]
[348177300,1736368244122,-500.0,0.00019999,3]
[348177301,1736368244131,-500.0,0.00019999,3]
[348177302,1736368244140,-500.0,0.00019999,3]
[348177303,1736368244149,-4006.72521068,0.0002,2]
[348177304,1736368244158,-595.80874616,0.0002,2]
[348177305,1736368244166,-500.0,0.00020269,3]
[348177306,1736368244175,-916.87,0.00020269,3]
[348177307,1736368244185,-500.0,0.00020269,3]
[348177308,1736368244193,-500.0,0.00020273,3]
[348177309,1736368244203,-500.0,0.00020273,3]
[348177310,1736368244212,-500.0,0.00020273,3]
[348177311,1736368244222,-360.83626473,0.00020543,3]
[348177312,1736368244231,-916.87,0.00020543,3]
[348177313,1736368244240,-173.04,0.00020543,3]
[348177314,1736368244250,-223.370119,0.00020546,3]
[348177315,1736368244260,-500.0,0.00020547,3]
[348177316,1736368244269,-500.0,0.00020547,3]
[348177317,1736368244277,-501.91,0.00020547,3]
[348177318,1736368244286,-916.87,0.00020817,3]
[348177319,1736368244295,-500.0,0.00020821,3]
[348177320,1736368244304,-500.0,0.00020821,3]
[348177321,1736368244313,-271.9333205,0.000209,2]
[348177322,1736368244323,-2076.53041677,0.00021,2]
[348177323,1736368245920,-970.66159224,0.00021,2]
[348177324,1736368245979,-105.54544889,0.00021,2]
[348177325,1736368245989,-271.93332033,0.00021003,2]
[348177326,1736368245999,-916.87,0.00021091,3]
[348177327,1736368246008,-500.0,0.00021095,3]